Workbook

Sheet Лист1
A1: Школа | C1: МБОУ "Пестречинская средняя общеобразовательная школа №1 с углублённым изучением отдельных предметов имени Героя России Ивана Алексеевича Додосова" | F1: Утвердил: | G1: должность | H1: Заместитель генерального директора АО"Департамент продовольствия и социального питания"г.Казань
G2: фамилия | H2: Агапова
A3: Возрастная категория | G3: дата | H3: 5 | I3: 12 | J3: 2025
H4: день | I4: месяц | J4: год
A5: Неделя | B5: День недели | C5: Прием пищи | D5: Раздел меню | E5: Блюда | F5: Вес блюда, г | G5: Белки | H5: Жиры | I5: Углеводы | J5: Калорийность | K5: № рецептуры | L5: Цена
A6: 1 | B6: 5 | C6: Завтрак | D6: гор.блюдо | E6: Котлеты Аппетитные мясо-куриные | F6: 90 | G6: 12.769 | H6: 9.269 | I6: 13.896 | J6: 190 | K6: ТТК июль 2021г
D7: гор.блюдо | E7: Пюре картофельное | F7: 150 | G7: 3.282 | H7: 4.657 | I7: 22.027 | J7: 146 | K7: №312/2015г,Дели
D8: гор.напиток | E8: Чай с сахаром | F8: 208 | G8: 0.007 | H8: 0.002 | I8: 7.986 | J8: 32 | K8: ТТК от 2021г
D9: хлеб | E9: Хлеб ржано-пшеничный/ Хлеб пшеничный | F9: 40 | G9: 2.520 | H9: 0.360 | I9: 18.840 | J9: 91
D11: закуска | E11: Салат из моркови с яблоками | F11: 60 | G11: 0.594 | H11: 6.084 | I11: 5.272 | J11: 79 | K11: №10 Сб.Пермь 2001г.
D13: итого | F13: =SUM(F6:F12) -> 548 | G13: =SUM(G6:G12) -> 19.172 | H13: 20.372 | I13: 68.021 | J13: =SUM(J6:J12) -> 538 | L13: 74.77
A14: =A6 -> 1 | B14: =B6 -> 5 | C14: Обед | D14: закуска
D15: 1 блюдо
D16: 2 блюдо
D17: гарнир
D18: напиток
D19: хлеб бел.
D20: хлеб черн.
D23: итого | F23: =SUM(F14:F22) -> 0 | G23: =SUM(G14:G22) -> 0 | H23: 0 | I23: 0 | J23: 0 | L23: =SUM(L14:L22) -> 0
A24: =A6 -> 1 | B24: =B6 -> 5 | C24: Итого за день: | F24: =F13+F23 -> 548 | G24: =G13+G23 -> 19.172 | H24: 20.372 | I24: 68.021 | J24: 538 | L24: =L13+L23 -> 74.77
A25: 1 | B25: 6 | C25: Завтрак | D25: гор.блюдо | E25: Пельмени для умников и умниц отварные с соусом для запекания | F25: 180 | G25: 14.244 | H25: 17.086 | I25: 37.017 | J25: 359 | K25: ТТК 2015г
D27: гор.напиток | E27: Чай с сахаром | F27: 208 | G27: 0.007 | H27: 0.002 | I27: 7.986 | J27: 32 | K27: ТТК от 2021г
D28: хлеб | E28: Хлеб ржано-пшеничный/ Хлеб пшеничный | F28: 40 | G28: 2.520 | H28: 0.360 | I28: 18.840 | J28: 91
D29: фрукты | E29: Плоды и ягоды свежие (яблоки) | F29: 100 | G29: 0.400 | H29: 0.400 | I29: 9.800 | J29: 47 | K29: №338 Дели 2015г
D31: конд. изд. | E31: Вафли весовые | F31: 21 | G31: 2.750 | H31: 2.500 | I31: 13.000 | J31: 86
D32: итого | F32: =SUM(F25:F31) -> 549 | G32: =SUM(G25:G31) -> 19.921 | H32: =SUM(H25:H31) -> 20.348 | I32: =SUM(I25:I31) -> 86.643 | J32: 615 | L32: 74.77
A33: =A25 -> 1 | B33: 6 | C33: Обед | D33: закуска
D34: 1 блюдо
D35: 2 блюдо
D36: гарнир
D37: напиток
D38: хлеб бел.
D39: хлеб черн.
D42: итого | F42: =SUM(F33:F41) -> 0 | G42: =SUM(G33:G41) -> 0 | H42: 0 | I42: 0 | J42: 0 | L42: =SUM(L33:L41) -> 0
A43: =A25 -> 1 | B43: =B25 -> 6 | C43: Итого за день: | F43: =F32+F42 -> 549 | G43: =G32+G42 -> 19.921 | H43: 20.348 | I43: 86.643 | J43: 615 | L43: =L32+L42 -> 74.77
A44: 2 | B44: 1 | C44: Завтрак | D44: гор.блюдо | E44: Котлеты сытные | F44: 90 | G44: 12.459 | H44: 15.047 | I44: 7.104 | J44: 214 | K44: ТТК №3410 от 06.10.2025г
D45: гор.блюдо | E45: Каша гречневая вязкая | F45: 150 | G45: 3.500 | H45: 4.643 | I45: 22.028 | J45: 144 | K45: №303/2015г,Дели
D46: гор.напиток | E46: Напиток из урюка | F46: 200 | G46: 0.800 | H46: 0.064 | I46: 9.460 | J46: 42 | K46: ТТК №2693 от 14.09.2023 г
D47: хлеб | E47: Хлеб ржано-пшеничный/ Хлеб пшеничный | F47: 40 | G47: 2.520 | H47: 0.360 | I47: 18.840 | J47: 91
D48: фрукты | E48: Плоды и ягоды свежие (яблоки) | F48: 100 | G48: 0.400 | H48: 0.400 | I48: 9.800 | J48: 47 | K48: №338 Дели 2015г
D51: итого | F51: =SUM(F44:F50) -> 580 | G51: =SUM(G44:G50) -> 19.679 | H51: =SUM(H44:H50) -> 20.514 | I51: =SUM(I44:I50) -> 67.232 | J51: =SUM(J44:J50) -> 538 | L51: 74.77
A52: =A44 -> 2 | B52: =B44 -> 1 | C52: Обед | D52: закуска
D53: 1 блюдо
D54: 2 блюдо
D55: гарнир
D56: напиток
D57: хлеб бел.
D58: хлеб черн.
D61: итого | F61: =SUM(F52:F60) -> 0 | G61: =SUM(G52:G60) -> 0 | H61: 0 | I61: 0 | J61: 0 | L61: =SUM(L52:L60) -> 0
A62: =A44 -> 2 | B62: =B44 -> 1 | C62: Итого за день: | F62: =F51+F61 -> 580 | G62: =G51+G61 -> 19.679 | H62: 20.514 | I62: 67.232 | J62: 538 | L62: =L51+L61 -> 74.77
A63: 2 | B63: 2 | C63: Завтрак | D63: гор.блюдо | E63: Жаркое по-домашнему | F63: 190 | G63: 12.616 | H63: 13.616 | I63: 34.791 | J63: 312 | K63: ТТК 2021 г
D65: гор.напиток | E65: Чай с сахаром | F65: 208 | G65: 0.007 | H65: 0.002 | I65: 7.986 | J65: 32 | K65: ТТК от 2021г
D66: хлеб | E66: Хлеб ржано-пшеничный/ Хлеб пшеничный | F66: 42 | G66: 2.620 | H66: 0.380 | I66: 19.740 | J66: 95
D68: закуска | E68: Салат из белокочанной капусты | F68: 60 | G68: 0.931 | H68: 3.051 | I68: 5.645 | J68: 54 | K68: №45/2015г,Дели
D69: конд. изд. | E69: Вафли весовые | F69: 21 | G69: 2.750 | H69: 2.500 | I69: 13.000 | J69: 86
D70: итого | F70: =SUM(F63:F69) -> 521 | G70: =SUM(G63:G69) -> 18.924 | H70: 19.549 | I70: 81.162 | J70: 579 | L70: 74.77
A71: =A63 -> 2 | B71: =B63 -> 2 | C71: Обед | D71: закуска
D72: 1 блюдо
D73: 2 блюдо
D74: гарнир
D75: напиток
D76: хлеб бел.
D77: хлеб черн.
D80: итого | F80: =SUM(F71:F79) -> 0 | G80: =SUM(G71:G79) -> 0 | H80: 0 | I80: 0 | J80: 0 | L80: =SUM(L71:L79) -> 0
A81: =A63 -> 2 | B81: =B63 -> 2 | C81: Итого за день: | F81: =F70+F80 -> 521 | G81: =G70+G80 -> 18.924 | H81: 19.549 | I81: 81.162 | J81: 579 | L81: =L70+L80 -> 74.77
A82: 2 | B82: 3 | C82: Завтрак | D82: гор.блюдо | E82: Плов с куриными грудками | F82: 200 | G82: 15.448 | H82: 16.298 | I82: 38.883 | J82: 364 | K82: ТТК Август 2025г
D84: гор.напиток | E84: Компот из замороженной компотной смеси | F84: 200 | G84: 0.135 | H84: 0.023 | I84: 11.150 | J84: 46 | K84: ТТК 2021 г
D85: хлеб | E85: Хлеб ржано-пшеничный/ Хлеб пшеничный | F85: 40 | G85: 2.520 | H85: 0.360 | I85: 18.840 | J85: 91
D86: фрукты | E86: Плоды и ягоды свежие (яблоки) | F86: 100 | G86: 0.400 | H86: 0.400 | I86: 9.800 | J86: 47 | K86: №338 Дели 2015г
D87: закуска | E87: Салат из моркови | F87: 60 | G87: 0.702 | H87: 3.051 | I87: 6.720 | J87: 58 | K87: ТТК
D89: итого | F89: =SUM(F82:F88) -> 600 | G89: =SUM(G82:G88) -> 19.205 | H89: =SUM(H82:H88) -> 20.132 | I89: 85.393 | J89: 606 | L89: 74.77
A90: =A82 -> 2 | B90: =B82 -> 3 | C90: Обед | D90: закуска
D91: 1 блюдо
D92: 2 блюдо
D93: гарнир
D94: напиток
D95: хлеб бел.
D96: хлеб черн.
D99: итого | F99: =SUM(F90:F98) -> 0 | G99: =SUM(G90:G98) -> 0 | H99: 0 | I99: 0 | J99: 0 | L99: =SUM(L90:L98) -> 0
A100: =A82 -> 2 | B100: =B82 -> 3 | C100: Итого за день: | F100: =F89+F99 -> 600 | G100: =G89+G99 -> 19.205 | H100: 20.132 | I100: 85.393 | J100: 606 | L100: =L89+L99 -> 74.77
A101: 2 | B101: 4 | C101: Завтрак | D101: гор.блюдо | E101: Фрикассе из куриных грудок | F101: 90 | G101: 8.826 | H101: 9.076 | I101: 2.436 | J101: 127 | K101: ТТК июль 2021г
D102: гор.блюдо | E102: Макаронные изделия отварные | F102: 150 | G102: 5.602 | H102: 5.068 | I102: 35.906 | J102: 212 | K102: №309/2015г,Дели
D103: гор.напиток | E103: Напиток из урюка | F103: 200 | G103: 0.800 | H103: 0.064 | I103: 9.460 | J103: 42 | K103: ТТК №2693 от 14.09.2023 г
D104: хлеб | E104: Хлеб ржано-пшеничный/ Хлеб пшеничный | F104: 40 | G104: 2.520 | H104: 0.360 | I104: 18.840 | J104: 91
D106: закуска | E106: Салат из свеклы отварной (с маслом) | F106: 60 | G106: 0.855 | H106: 3.653 | I106: 5.016 | J106: 56 | K106: №52/2015г,Дели
D107: конд. изд. | E107: Печенье весовое 5шт/ | F107: 16 | G107: 1.104 | H107: 2.208 | I107: 11.856 | J107: 71
D108: итого | F108: =SUM(F101:F107) -> 556 | G108: =SUM(G101:G107) -> 19.707 | H108: =SUM(H101:H107) -> 20.429 | I108: =SUM(I101:I107) -> 83.514 | J108: =SUM(J101:J107) -> 599 | L108: 74.77
A109: =A101 -> 2 | B109: =B101 -> 4 | C109: Обед | D109: закуска
D110: 1 блюдо
D111: 2 блюдо
D112: гарнир
D113: напиток
D114: хлеб бел.
D115: хлеб черн.
D118: итого | F118: =SUM(F109:F117) -> 0 | G118: =SUM(G109:G117) -> 0 | H118: =SUM(H109:H117) -> 0 | I118: 0 | J118: 0 | L118: =SUM(L109:L117) -> 0
A119: =A101 -> 2 | B119: =B101 -> 4 | C119: Итого за день: | F119: =F108+F118 -> 556 | G119: =G108+G118 -> 19.707 | H119: 20.429 | I119: 83.514 | J119: 599 | L119: =L108+L118 -> 74.77
A120: 2 | B120: 5 | C120: Завтрак | D120: гор.блюдо | E120: Котлеты куриные "Нежные" | F120: 90 | G120: 12.657 | H120: 8.588 | I120: 6.947 | J120: 156 | K120: ТТК 2024 г
D121: гор.блюдо | E121: Картофель запеченный (из сырого) | F121: 150 | G121: 3.507 | H121: 8.224 | I121: 28.402 | J121: 202 | K121: ТТК
D122: гор.напиток | E122: Чай с сахаром | F122: 208 | G122: 0.007 | H122: 0.002 | I122: 7.986 | J122: 32 | K122: ТТК от 2021г
D123: хлеб | E123: Хлеб ржано-пшеничный/ Хлеб пшеничный | F123: 40 | G123: 2.520 | H123: 0.360 | I123: 18.840 | J123: 91
D124: фрукты | E124: Плоды и ягоды свежие (яблоки) | F124: 100 | G124: 0.400 | H124: 0.400 | I124: 9.800 | J124: 47 | K124: №338 Дели 2015г
D125: закуска | E125: Салат из белокочанной капусты | F125: 60 | G125: 0.931 | H125: 3.051 | I125: 5.645 | J125: 54 | K125: №45/2015г,Дели
D127: итого | F127: =SUM(F120:F126) -> 648 | G127: =SUM(G120:G126) -> 20.022 | H127: =SUM(H120:H126) -> 20.625 | I127: 77.620 | J127: =SUM(J120:J126) -> 582 | L127: 74.77
A128: =A120 -> 2 | B128: =B120 -> 5 | C128: Обед | D128: закуска
D129: 1 блюдо
D130: 2 блюдо
D131: гарнир
D132: напиток
D133: хлеб бел.
D134: хлеб черн.
D137: итого | F137: =SUM(F128:F136) -> 0 | G137: =SUM(G128:G136) -> 0 | H137: 0 | I137: 0 | J137: 0 | L137: =SUM(L128:L136) -> 0
A138: =A120 -> 2 | B138: =B120 -> 5 | C138: Итого за день: | F138: =F127+F137 -> 648 | G138: =G127+G137 -> 20.022 | H138: 20.625 | I138: 77.62 | J138: 582 | L138: =L127+L137 -> 74.77
A139: 2 | B139: 6 | C139: Завтрак | D139: гор.блюдо | E139: Сосиски отварные с соусом для запекания | F139: 90 | G139: 9.116 | H139: 10.143 | I139: 3.758 | J139: 143 | K139: ТТК декабрь 2022г
D140: гор.блюдо | E140: Рис отварной | F140: 150 | G140: 3.834 | H140: 5.434 | I140: 34.014 | J140: 200 | K140: №304/2015г,Дели
D141: гор.напиток | E141: Чай с сахаром | F141: 208 | G141: 0.007 | H141: 0.002 | I141: 7.986 | J141: 32 | K141: ТТК от 2021г
D142: хлеб | E142: Хлеб ржано-пшеничный/ Хлеб пшеничный | F142: 40 | G142: 2.520 | H142: 0.360 | I142: 18.840 | J142: 91
D143: фрукты | E143: Плоды и ягоды свежие (яблоки) | F143: 100 | G143: 0.400 | H143: 0.400 | I143: 9.800 | J143: 47 | K143: №338 Дели 2015г
D145: конд. изд. | E145: Вафли весовые | F145: 21 | G145: 2.750 | H145: 2.500 | I145: 13.000 | J145: 86
D146: итого | F146: =SUM(F139:F145) -> 609 | G146: =SUM(G139:G145) -> 18.627 | H146: =SUM(H139:H145) -> 18.839 | I146: =SUM(I139:I145) -> 87.398 | J146: =SUM(J139:J145) -> 599 | L146: 74.77
A147: =A139 -> 2 | B147: 6 | C147: Обед | D147: закуска
D148: 1 блюдо
D149: 2 блюдо
D150: гарнир
D151: напиток
D152: хлеб бел.
D153: хлеб черн.
D156: итого | F156: =SUM(F147:F155) -> 0 | G156: =SUM(G147:G155) -> 0 | H156: 0 | I156: 0 | J156: 0 | L156: =SUM(L147:L155) -> 0
A157: =A139 -> 2 | B157: =B139 -> 6 | C157: Итого за день: | F157: =F146+F156 -> 609 | G157: =G146+G156 -> 18.627 | H157: 18.839 | I157: 87.398 | J157: 599 | L157: =L146+L156 -> 74.77
C158: Среднее значение за период: | F158: =(F157+F138+F119+F100+F81+F62+F43+F24+#REF!+#REF!+#REF!+#REF!)/12 ->  | G158: =(G157+G138+G119+G100+G81+G62+G43+G24+#REF!+#REF!+#REF!+#REF!)/12 ->  | H158: =(H157+H138+H119+H100+H81+H62+H43+H24+#REF!+#REF!+#REF!+#REF!)/12 ->  | I158: =(I157+I138+I119+I100+I81+I62+I43+I24+#REF!+#REF!+#REF!+#REF!)/12 ->  | J158: =(J157+J138+J119+J100+J81+J62+J43+J24+#REF!+#REF!+#REF!+#REF!)/12 ->  | L158: 74.77
